bitfinex-derivatives/quotes_ETHF0:USTF0_20240826
["timestamp","ask_amount","ask_price","bid_price","bid_amount"]
[1724640649929,0.3649,2739.4,2739.1,0.6745]
[1724640650127,0.36491,2739.3,2739.1,0.6745]
[1724640650635,0.3649,2739.4,2739.1,0.6745]
[1724640651029,0.36491,2739.3,2739.1,0.6745]
[1724640651236,3.65040155,2739.5,2739.1,0.6745]
[1724640651536,0.3649,2739.4,2739.1,0.6745]
[1724640651737,0.36491,2739.3,2739.1,0.6745]
[1724640651939,0.3649,2739.4,2739.1,0.6745]
[1724640652236,3.65040155,2739.5,2739.1,0.6745]
[1724640652640,0.36492,2739.2,2739.1,0.6745]
[1724640653125,0.36492,2739.3,2739.1,0.6745]
[1724640653540,2.73980155,2739.4,2739.1,0.6745]
[1724640653941,2.37490155,2739.5,2739.3,3.16]
[1724640654234,0.6323,2739.6,2739.3,3.16]
[1724640654235,0.6323,2739.6,2739.3,3.5249]
[1724640654430,0.6323,2739.6,2739.3,3.16]
[1724640658831,0.6323,2739.6,2739.3,3.52491]
[1724640659035,0.6323,2739.6,2739.3,3.16]
[1724640659745,0.98015,2739.8,2739.3,3.52491]
[1724640660645,0.98015,2739.8,2739.3,3.16]
[1724640661143,0.98015,2739.8,2739.3,3.52491]
[1724640661940,0.36484,2739.9,2739.3,3.52491]
[1724640662144,0.98654,2739.9,2739.3,3.52491]
[1724640662345,0.36484,2739.8,2739.3,3.52491]
[1724640662546,0.36487,2739.6,2739.3,3.16]
[1724640662734,0.631,2739.7,2739.3,3.16]
[1724640663233,0.631,2739.7,2739.2,1.3158]
[1724640663234,0.3649,2739.4,2739.1,3.8823]
[1724640663439,0.36492,2739.2,2739.1,0.6745]
[1724640664142,1.00752,2739.2,2739.1,0.6745]
[1724640665651,0.36494,2739.1,2738.8,1.3388]
[1724640665949,1.62813,2739.2,2738.8,1.3388]
[1724640666338,1.2632,2739.2,2738.8,0.668]
[1724640666639,0.36494,2739.1,2738.8,0.668]
[1724640667543,1.62813,2739.2,2738.8,0.668]
[1724640668039,1.2632,2739.2,2738.8,0.668]
[1724640668246,0.6426,2739.2,2738.8,4.19297]
[1724640668443,0.6426,2739.2,2738.8,3.828]
[1724640668948,0.6426,2739.2,2738.8,4.19297]
[1724640670146,0.6426,2739.2,2738.8,3.828]
[1724640670347,1.00752,2739.2,2738.8,3.828]
[1724640670553,1.63802,2739.2,2738.8,3.828]
[1724640670847,1.2731,2739.2,2738.6,0.6804]
[1724640671050,3.64800155,2739.2,2738.6,0.6804]
[1724640671350,2.37490155,2739.1,2738.6,0.6804]
[1724640671554,0.36497,2738.9,2738.6,0.6804]
[1724640672040,0.36498,2738.8,2738.6,0.6804]
[1724640672241,0.6767,2738.8,2738.6,0.6804]
[1724640672750,1.04168,2738.8,2738.6,0.6804]
[1724640672951,0.6298,2738.7,2738.6,0.6804]
[1724640675250,0.36497,2738.9,2738.6,0.6804]
[1724640676743,0.36498,2738.8,2738.6,0.6804]
[1724640676943,1.2581,2739.0,2738.6,0.6804]
[1724640677154,0.36499,2738.8,2738.6,0.6804]
[1724640677558,1.2581,2739.0,2738.6,0.6804]
[1724640678052,3.2078,2738.8,2738.5,0.00295946]
[1724640679059,1.62306,2739.0,2738.5,0.00295946]
[1724640679257,0.36497,2738.9,2738.5,0.00295946]
[1724640679551,9.66209632,2738.9,2738.5,0.00295946]
[1724640680061,9.29712632,2738.9,2738.5,0.00295946]
[1724640680355,9.66209632,2738.9,2738.5,0.00295946]
[1724640681649,9.29712632,2738.9,2738.5,0.00295946]
[1724640681955,9.66209632,2738.9,2738.5,0.00295946]
[1724640682154,9.29712632,2738.9,2738.5,0.36797946]
[1724640682857,9.29712632,2738.9,2738.5,0.00295946]
[1724640683049,9.66209632,2738.9,2738.5,0.00295946]
[1724640683754,9.29712632,2738.9,2738.5,0.36797946]
[1724640684055,9.66209632,2738.9,2738.5,0.00295946]
[1724640684644,0.36498,2738.8,2738.5,0.00295946]
[1724640684847,1.02418,2738.8,2738.5,0.00295946]
[1724640685254,0.6592,2738.8,2738.5,0.00295946]
[1724640685461,1.02418,2738.8,2738.5,0.00295946]
[1724640686351,0.36496,2738.9,2738.5,0.00295946]
[1724640686851,9.42906194,2738.9,2738.5,0.00295946]
[1724640688450,9.42906194,2738.9,2738.5,0.36796946]
[1724640688759,0.36498,2738.8,2738.5,0.00295946]
[1724640690556,0.36499,2738.7,2738.5,0.00295946]
[1724640690949,0.6594,2738.6,2738.5,0.00295946]
[1724640693163,0.36499,2738.7,2738.5,0.00295946]
[1724640694661,0.36498,2738.8,2738.5,0.00295946]
[1724640694962,0.36498,2738.8,2738.5,0.67445946]
[1724640695356,6.84080155,2739.0,2738.5,0.67445946]
[1724640695551,1.2581,2739.0,2738.6,3.16]
[1724640695757,1.2581,2739.0,2738.7,0.6307]
[1724640696058,1.2581,2739.0,2738.7,1.64388]
[1724640696258,1.2581,2739.0,2738.8,0.36497]
[1724640696562,1.2581,2739.0,2738.7,1.2789]
[1724640696957,1.2581,2739.0,2738.7,1.64388]
[1724640697856,1.2581,2739.0,2738.7,1.2789]
[1724640698062,1.62306,2739.0,2738.7,1.2789]
[1724640699565,1.2581,2739.0,2738.7,1.2789]
[1724640701068,1.62305,2739.0,2738.7,1.2789]
[1724640701363,1.2581,2739.0,2738.7,1.64389]
[1724640701869,1.62305,2739.0,2738.7,1.2789]
[1724640702373,2.37490155,2739.3,2738.5,3.21075946]
[1724640702374,9.15322307,2738.9,2738.5,3.21075946]
[1724640702557,9.15322307,2738.9,2738.7,0.6797]
[1724640702757,0.91235,2739.1,2738.7,0.6797]
[1724640702953,0.365,2738.6,2738.5,3.21075946]
[1724640703358,0.365,2738.7,2738.5,3.21075946]
[1724640704054,0.365,2738.6,2738.5,0.00295946]
[1724640704259,1.6966,2738.6,2738.5,0.00295946]
[1724640704564,2.60911,2738.6,2738.5,0.00295946]
[1724640704760,2.3242,2738.6,2738.5,0.00295946]
[1724640705275,1.3316,2738.6,2738.5,0.00295946]
[1724640708658,0.6542,2738.6,2738.5,0.00295946]
[1724640708862,2.37814924,2738.8,2738.5,11.81415946]
[1724640709173,2.37814924,2739.0,2738.7,3.52498]
[1724640709362,2.37814924,2739.0,2738.8,0.6305]
[1724640709757,2.37814924,2739.0,2738.9,0.6607]
[1724640719571,2.37814924,2739.0,2738.9,4.67686]
[1724640719774,6.05171814,2739.4,2738.9,4.9262]
[1724640719775,2.37814924,2739.3,2738.9,4.9262]
[1724640719975,2.37814924,2739.3,2739.1,3.16]
[1724640720176,2.37814924,2739.3,2739.2,0.664]
[1724640720377,5.58594924,2739.4,2739.2,0.664]
[1724640720879,5.58594924,2739.4,2739.3,0.632]
[1724640722268,5.58594924,2739.4,2739.1,3.16]
[1724640722269,5.95085924,2739.4,2739.1,3.16]
[1724640722492,5.58594924,2739.4,2739.0,0.632]
[1724640722678,0.36492,2739.3,2739.0,0.632]
[1724640722876,0.6171,2739.2,2739.0,0.632]
[1724640723976,0.6171,2739.2,2739.0,4.2832]
[1724640724176,5.95084924,2739.4,2739.0,4.2832]
[1724640724478,5.95084924,2739.4,2739.0,0.99694]
[1724640725387,5.58594924,2739.4,2739.0,0.99694]
[1724640725680,5.95084924,2739.4,2739.1,0.6633]
[1724640726074,2.74304924,2739.4,2739.1,0.6633]
[1724640726282,0.3649,2739.4,2739.1,0.6633]
[1724640727793,2.99524924,2739.5,2739.1,0.6633]
[1724640727794,3.36013924,2739.5,2739.1,0.6633]
[1724640727980,2.99524924,2739.5,2739.1,4.18823]
[1724640728182,2.99524924,2739.5,2739.2,0.36492]
[1724640728486,0.6171,2739.5,2739.2,0.36492]
[1724640729487,2.99524924,2739.5,2739.2,0.36492]
[1724640730193,0.6171,2739.5,2739.2,0.36492]
[1724640733090,0.6171,2739.5,2739.3,0.36491]
[1724640733585,0.6171,2739.5,2739.4,0.6338]
[1724640733976,0.6798,2739.6,2739.4,4.1587]
[1724640734179,0.6798,2739.6,2739.5,0.36488]
[1724640734487,0.6798,2739.6,2739.4,4.15869]
[1724640735683,0.6798,2739.6,2739.5,0.36488]
[1724640735890,0.98773,2739.9,2739.7,0.36486]
[1724640735891,3.00104924,2739.9,2739.7,0.36486]
[1724640736089,1.288,2739.9,2739.8,0.6338]
[1724640736591,1.288,2739.9,2739.5,1.65208]
[1724640736781,1.288,2739.9,2739.6,0.6386]
[1724640738084,1.65283,2739.9,2739.8,1.31]
[1724640739784,1.288,2739.9,2739.8,1.31]
[1724640742089,1.65283,2739.9,2739.8,1.31]
[1724640743088,1.288,2739.9,2739.8,1.31]
[1724640743788,0.00898746,2740.0,2739.8,5.32443]
[1724640743996,2.37814924,2740.5,2739.9,1.64003]
[1724640744294,3.71339414,2740.6,2740.4,1.31]
[1724640744511,3.71339414,2740.6,2740.5,1.31]
[1724640744990,1.3338,2740.6,2740.5,1.31]
[1724640745298,1.3375093,2740.6,2740.5,1.31365318]
[1724640746005,1.3375093,2740.6,2740.5,0.00365318]
[1724640746394,0.0037093,2740.6,2740.5,0.00365318]
[1724640746786,1.0189493,2740.6,2740.5,0.00365318]
[1724640747502,1.6926493,2740.6,2740.5,0.00365318]
[1724640747993,5.3414493,2740.6,2740.5,0.00365318]
[1724640752896,11.2532993,2740.6,2740.5,0.00365318]
[1724640753193,0.36476,2740.4,2740.3,0.00547725]
[1724640753394,4.01356,2740.4,2740.3,0.00547725]
[1724640754196,4.01356,2740.4,2740.3,0.00982488]
[1724640755196,3.6488,2740.4,2740.3,0.00982488]
[1724640756194,4.2967,2740.4,2740.3,0.00982488]
[1724640756391,1.0189493,2740.6,2740.3,0.00982488]
[1724640756594,0.6479,2740.5,2740.3,0.00982488]
[1724640757489,0.36476,2740.4,2740.3,0.00982488]
[1724640759189,2.74435414,2740.4,2740.3,0.00982488]
[1724640760502,2.37959414,2740.4,2740.3,0.00982488]
[1724640760798,3.39224414,2740.5,2740.3,0.00982488]
[1724640761015,0.6479,2740.5,2740.3,0.00982488]
[1724640763300,1.01265,2740.5,2740.3,0.00982488]
[1724640763500,0.6479,2740.5,2740.3,0.00982488]
[1724640764398,3.02749414,2740.5,2740.3,0.00982488]
[1724640766009,3.39224414,2740.5,2740.3,0.00982488]
[1724640766301,0.6479,2740.5,2740.3,0.00982488]
[1724640766505,1.01265,2740.5,2740.3,0.00982488]
[1724640766705,0.36476,2740.4,2740.3,0.00982488]
[1724640767300,1.01265,2740.5,2740.3,0.00982488]
[1724640767700,0.36476,2740.4,2740.3,0.00982488]
[1724640767926,13.90444342,2740.4,2740.3,0.00982488]
[1724640768702,4.92547,2740.4,2740.3,0.00982488]
[1724640769413,4.01356,2740.4,2740.3,0.00982488]
[1724640770414,12.30506414,2740.4,2740.3,0.00982488]
[1724640770709,9.92547,2740.4,2740.3,0.00982488]
[1724640771410,4.92547,2740.4,2740.3,0.00982488]
[1724640775305,4.01356,2740.4,2740.3,0.00982488]
[1724640775503,0.36476,2740.4,2740.3,0.00982488]
[1724640776516,4.01356,2740.4,2740.3,0.00982488]
[1724640776810,0.36476,2740.4,2740.3,0.00982488]
[1724640777912,4.01356,2740.4,2740.3,0.00982488]
[1724640780107,4.01356,2740.4,2740.3,1.31982488]
[1724640780508,0.36476,2740.4,2740.3,1.31982488]
[1724640782112,4.01356,2740.4,2740.3,0.00982488]
[1724640782416,7.82010388,2740.4,2740.3,0.00982488]
[1724640783407,3.33853944,2740.4,2740.3,1.31982488]
[1724640784916,3.70329944,2740.4,2740.3,1.31982488]
[1724640785506,3.33853944,2740.4,2740.3,1.31982488]
[1724640785704,2.8632466,2740.4,2740.3,1.31982488]
[1724640785912,2.8632466,2740.4,2740.3,4.96862488]
[1724640786609,2.8632466,2740.4,2740.3,5.32112488]
[1724640788317,2.86513412,2740.4,2740.3,5.32112488]
[1724640788519,3.33853944,2740.5,2740.3,5.32112488]
[1724640788720,3.33853944,2740.5,2740.3,1.67232488]
[1724640789512,1.0189493,2740.6,2740.3,1.67232488]
[1724640789717,1.0189493,2740.6,2740.5,1.31]
[1724640796612,3.8844417,2740.6,2740.5,1.31]
[1724640796821,1.0189493,2740.6,2740.5,1.31]
[1724640797415,3.8844417,2740.6,2740.5,1.31]
[1724640798025,1.0189493,2740.6,2740.5,1.31]
[1724640799825,3.8844417,2740.6,2740.5,1.31]
[1724640800122,1.0189493,2740.6,2740.5,1.31]
[1724640800520,0.6542093,2740.6,2740.3,0.00982488]
[1724640800828,4.1421624,2740.4,2740.3,0.00982488]
[1724640801127,3.23080284,2740.4,2740.3,1.31982488]
[1724640801426,6.87960284,2740.4,2740.3,1.31982488]
[1724640803518,7.82010388,2740.4,2740.3,1.31982488]
[1724640805219,4.01356,2740.4,2740.3,1.31982488]
[1724640805929,8.1863013,2740.4,2740.3,0.00982488]
[1724640807017,4.01356,2740.4,2740.3,0.00982488]
[1724640807429,8.1863013,2740.4,2740.3,0.00982488]
[1724640807928,4.01356,2740.4,2740.3,0.00982488]
[1724640808117,9.92547,2740.4,2740.3,1e-08]
[1724640808320,0.91198,2740.3,2739.9,1.31]
[1724640808518,0.36482,2740.0,2739.9,1.31]
[1724640808947,7.83543067,2740.0,2739.9,1.31]
[1724640809428,7.83543067,2740.0,2739.9,1.31316479]
[1724640810017,11.04323067,2740.0,2739.9,1.31316479]
[1724640810326,7.22222,2740.0,2739.9,1.31316479]
[1724640811325,3.57262,2740.0,2739.9,1.31316479]
[1724640811827,7.22222,2740.0,2739.9,1.31316479]
[1724640812029,3.57262,2740.0,2739.9,1.31316479]
[1724640812728,3.2078,2740.0,2739.9,1.31316479]
[1724640813917,3.2078,2740.0,2739.9,1.66476479]
[1724640815331,0.74739,2740.2,2739.9,1.66476479]
[1724640815539,0.74739,2740.2,2740.1,1.31]
[1724640815925,4.39699,2740.2,2740.1,1.31]
[1724640816332,0.74739,2740.2,2740.1,1.31]
[1724640818934,0.3826,2740.2,2740.1,1.31]
[1724640819944,3.72020332,2740.3,2740.1,1.31]
[1724640820126,4.08498332,2740.3,2740.1,1.31]
[1724640820328,4.08498332,2740.3,2740.2,0.3587]
[1724640825839,0.36482,2740.0,2739.9,0.00316479]
[1724640826044,0.36482,2740.0,2739.9,1.67376479]
[1724640826541,0.72252,2740.0,2739.9,1.67376479]
[1724640828837,2.03252,2740.0,2739.9,0.00316479]
[1724640829047,2.03252,2740.0,2739.7,1.31547725]
[1724640829048,0.36484,2739.8,2739.7,1.31547725]
[1724640830058,0.36484,2739.8,2739.7,1.31820867]
[1724640830544,0.3577,2740.0,2739.7,1.31820867]
[1724640830845,0.3577,2740.0,2739.8,1.6891]
[1724640831251,0.3577,2740.0,2739.9,0.3597]
[1724640832234,0.72252,2740.0,2739.9,0.3597]
[1724640832748,0.72253,2740.0,2739.8,1.31]
[1724640832946,0.72253,2740.0,2739.9,0.3597]
[1724640833146,0.72253,2740.0,2739.9,1.6697]
[1724640833648,3.22341725,2740.0,2739.9,1.6697]
[1724640833846,3.58823725,2740.0,2739.9,1.6697]
[1724640834150,0.3577,2740.0,2739.9,1.6697]
[1724640834457,3.5746,2740.2,2739.9,1.6697]
[1724640834458,6.06982849,2740.2,2739.9,5.3193]
[1724640834750,6.06982849,2740.2,2740.1,1.31]
[1724640834751,3.2078,2740.2,2740.1,1.31]
[1724640835950,3.2078,2740.2,2740.0,0.7307]
[1724640838357,2.86202849,2740.3,2740.0,0.7307]
[1724640839854,3.22678849,2740.4,2740.0,0.7307]
[1724640840452,2.86202849,2740.3,2740.0,0.7307]
[1724640841452,2.86202849,2740.4,2740.2,3.15]
[1724640841660,0.0037093,2740.6,2740.3,0.72887]
[1724640841858,0.0037093,2740.6,2740.4,0.3793]
[1724640842059,0.0037093,2740.6,2740.4,0.76]
[1724640843564,0.0037093,2740.6,2740.5,3.15]
[1724640844353,0.00547725,2740.8,2740.6,0.36472]
[1724640844646,0.00547725,2740.8,2740.6,4.01352]
[1724640844965,7.04902849,2741.4,2740.6,4.01352]
[1724640844966,2.86202849,2742.0,2740.7,14.51139698]
[1724640845261,0.74852,2742.3,2741.7,3.15]
[1724640845553,0.74852,2742.3,2741.7,3.15380051]
[1724640845554,0.00314989,2742.0,2741.7,3.15380051]
[1724640845953,0.00314989,2742.0,2741.7,6.80100051]
[1724640847953,0.00314989,2742.0,2741.8,0.3695]
[1724640848356,0.00314989,2742.0,2741.8,4.0167]
[1724640848764,0.00314989,2742.0,2741.8,0.3695]
[1724640851267,4.01490989,2742.0,2741.7,0.00380051]
[1724640851463,0.36770989,2742.0,2741.7,0.00380051]
[1724640851764,0.36457,2741.9,2741.7,0.00380051]
[1724640852068,1.09738,2741.8,2741.7,0.00380051]
[1724640852252,4.38,2741.8,2741.7,0.00380051]
[1724640853364,5.7328,2741.8,2740.7,0.364]
[1724640853560,3.2078,2741.1,2740.8,0.3622]
[1724640853760,0.361,2741.0,2740.8,0.3622]
[1724640853968,0.361,2741.0,2740.4,3.15]
[1724640854263,0.7375,2741.0,2740.5,0.3622]
[1724640854459,0.7375,2741.0,2740.5,0.37113095]
[1724640860356,0.7375,2741.0,2740.5,0.73588095]
[1724640860558,3.2078,2741.1,2740.5,4.01993095]
[1724640860762,3.2078,2741.1,2740.9,0.3647]
[1724640861066,3.2078,2741.1,2741.0,0.3517]
[1724640861465,3.2078,2741.1,2741.0,3.9997]
[1724640863362,0.3669,2741.3,2741.0,3.9997]
[1724640863564,0.3669,2741.3,2741.0,0.71638]
[1724640864575,0.3669,2741.3,2741.1,0.36467]
[1724640864866,0.3669,2741.3,2741.0,0.71638]
[1724640866661,0.3669,2741.3,2741.1,0.36467]
[1724640866858,0.3571,2741.6,2741.2,0.36465]
[1724640867073,0.3754,2741.6,2741.1,3.15]
[1724640867270,0.3754,2741.6,2741.3,0.36464]
[1724640867470,3.2078,2741.8,2741.3,0.36464]
[1724640867768,0.3877,2741.7,2741.2,0.36465]
[1724640867969,0.3877,2741.7,2741.1,3.51466]
[1724640869361,0.7523,2741.7,2741.1,3.15]
[1724640870275,0.3877,2741.7,2741.1,3.51466]
[1724640870575,0.75229,2741.7,2741.1,3.51466]
[1724640871060,0.75229,2741.7,2741.1,3.15]
[1724640872277,0.75229,2741.7,2741.1,3.51467]
[1724640872667,0.3646,2741.6,2741.1,3.15]
[1724640872866,0.3877,2741.7,2741.1,3.15]
[1724640872867,0.73402,2741.5,2741.1,3.15]
[1724640873170,0.3694,2741.5,2741.1,3.15]
[1724640873772,0.73402,2741.5,2741.1,3.15]
[1724640875066,0.3694,2741.5,2741.1,3.5343]
[1724640875267,0.73402,2741.5,2741.1,3.5343]
[1724640875572,0.36461,2741.6,2741.1,3.5343]
[1724640875774,0.36461,2741.6,2741.1,3.89897]
[1724640876874,0.3877,2741.7,2741.1,3.5343]
[1724640877274,0.36462,2741.5,2741.1,3.15]
[1724640877874,0.36461,2741.6,2741.1,3.51466]
[1724640879067,0.36461,2741.6,2741.2,0.37]
[1724640880075,0.7523,2741.7,2741.2,0.73465]
[1724640880270,0.7523,2741.7,2741.2,0.37]
[1724640880579,0.36461,2741.6,2741.2,0.37]
[1724640881173,0.7523,2741.7,2741.2,0.37]
[1724640882710,0.3877,2741.7,2741.2,0.37]
[1724640882870,0.3877,2741.7,2741.3,0.36464]
[1724640883269,0.3877,2741.7,2741.4,0.3518]
[1724640884878,0.36461,2741.6,2741.1,6.3578]
[1724640885874,0.0815,2741.5,2741.1,6.3578]
[1724640886077,0.0815,2741.5,2741.4,1.31]
[1724640886980,0.7523,2741.7,2741.4,1.31]
[1724640887482,0.7523,2741.7,2741.6,1.31]
[1724640887676,0.3877,2741.7,2741.6,1.31]
[1724640887878,4.0349,2741.7,2741.6,1.31]
[1724640889586,4.39949,2741.7,2741.6,1.31]
[1724640889986,4.0349,2741.7,2741.6,1.31]
[1724640890207,0.3877,2741.7,2741.6,1.31]
[1724640890482,0.3717,2741.8,2741.6,1.31]
[1724640890786,0.3717,2741.8,2741.7,1.31]
[1724640892780,0.75319989,2742.0,2741.9,0.36456]
[1724640892781,0.00314989,2742.0,2741.9,0.36456]
[1724640892985,0.00314989,2742.0,2741.9,1.31]
[1724640893285,0.00314989,2742.0,2741.9,4.9572]
[1724640894676,0.36770989,2742.0,2741.6,0.3602]
[1724640894973,4.06869679,2741.9,2741.8,1.31]
[1724640895182,3.70413679,2741.9,2741.8,1.31]
[1724640895389,4.008,2741.9,2741.8,1.31]
[1724640895585,4.37256,2741.9,2741.8,1.31]
[1724640895986,8.19357067,2741.9,2741.8,1.31]
[1724640898886,7.82901067,2741.9,2741.8,1.31]
[1724640899478,8.19357067,2741.9,2741.8,1.31]
[1724640899682,7.82901067,2741.9,2741.8,1.31]
[1724640899885,4.18181067,2741.9,2741.8,1.31]
[1724640900585,4.54637067,2741.9,2741.8,1.31]
[1724640900793,0.36458,2741.8,2741.6,0.3602]
[1724640900981,4.53699067,2741.8,2741.7,1.31]
[1724640901177,4.17241067,2741.8,2741.7,1.31]
[1724640901381,0.3514,2741.8,2741.7,1.31]
[1724640901778,0.3514,2741.8,2741.7,9.9572]
[1724640901779,3.33662216,2741.8,2741.7,9.9572]
[1724640901977,7.98598143,2741.9,2741.7,9.9572]
[1724640901978,3.33977205,2742.0,2741.9,0.36456]
[1724640902184,4.1727413,2742.2,2741.9,0.36456]
[1724640902185,2.86030089,2742.2,2741.9,5.14281603]
[1724640902391,2.86030089,2742.4,2742.1,1.31]
[1724640902695,2.86030089,2742.6,2742.5,0.36448]
[1724640902998,2.86030089,2742.6,2742.5,4.88228]
[1724640903287,0.0044974,2742.6,2742.5,8.53155985]
[1724640903494,0.0044974,2742.6,2742.5,13.53155985]
[1724640903679,0.00547725,2742.8,2742.5,13.53155985]
[1724640903680,0.00547725,2742.8,2742.7,0.36446]
[1724640903882,0.00547725,2742.8,2742.7,6.67446]
[1724640904083,0.00547725,2742.8,2742.7,3.6456]
[1724640904689,0.00977911,2742.8,2742.7,3.6456]
[1724640904993,0.00977911,2742.8,2742.6,3.15]
[1724640905192,0.00977911,2742.8,2742.5,3.21067985]
[1724640905393,3.57227,2742.6,2742.5,0.00287985]
[1724640905992,7.21867,2742.6,2742.5,0.00287985]
[1724640906501,4.01087,2742.6,2742.5,0.00287985]
[1724640907396,0.36447,2742.6,2742.5,0.00287985]
[1724640911893,4.01087,2742.6,2742.5,0.00287985]
[1724640913098,7.21867,2742.6,2742.5,0.00287985]
[1724640914091,6.8542,2742.6,2742.5,0.00287985]
[1724640914595,1.08986,2742.7,2742.5,0.00287985]
[1724640914902,0.36447,2742.6,2742.5,0.00287985]
[1724640915609,0.7254,2742.7,2742.5,0.00287985]
[1724640916293,4.3718,2742.7,2742.5,0.00287985]
[1724640916605,0.7254,2742.7,2742.5,0.00287985]
[1724640916792,4.3718,2742.7,2742.5,0.00287985]
[1724640917096,0.7254,2742.7,2742.5,0.00287985]
[1724640917307,1.08986,2742.7,2742.5,0.00287985]
[1724640917803,0.7254,2742.7,2742.5,0.00287985]
[1724640918500,1.08986,2742.7,2742.5,0.00287985]
[1724640918893,0.36447,2742.6,2742.5,0.00287985]
[1724640919599,3.6464,2742.6,2742.5,0.00287985]
[1724640919820,0.7254,2742.7,2742.5,3.64927985]
[1724640920002,0.7254,2742.7,2742.6,0.3878]
[1724640920404,0.00977911,2742.8,2742.6,0.3878]
[1724640920905,0.37422911,2742.8,2742.6,0.3878]
[1724640921105,0.73052911,2742.8,2742.6,0.3878]
[1724640921801,0.36607911,2742.8,2742.6,0.3878]
[1724640922804,0.73052911,2742.8,2742.6,0.3878]
[1724640923028,0.36446,2742.7,2742.6,0.3878]
[1724640923207,0.73456,2742.7,2742.6,0.3878]
[1724640923899,0.73456,2742.7,2742.5,0.00287985]
[1724640923900,0.36447,2742.6,2742.5,0.00287985]
[1724640924099,0.3701,2742.7,2742.5,0.00287985]
[1724640924300,0.73052911,2742.8,2742.5,0.00287985]
[1724640924605,1.10062911,2742.8,2742.5,0.00287985]
[1724640925903,0.36446,2742.7,2742.5,0.00287985]
[1724640926100,1.10062911,2742.8,2742.5,0.00287985]
[1724640926306,0.36447,2742.6,2742.5,0.00287985]
[1724640926812,0.36446,2742.7,2742.5,0.00287985]
[1724640927401,0.36447,2742.6,2742.5,0.00287985]
[1724640927606,0.3645,2742.4,2742.3,0.00547725]
[1724640928702,0.3645,2742.4,2742.3,0.00817833]
[1724640936014,3.2078,2742.6,2742.3,4.96457833]
[1724640936208,3.2078,2742.6,2742.5,1.31]
[1724640936209,3.57228,2742.6,2742.5,1.31]
[1724640936811,0.36446,2742.7,2742.5,0.3867]
[1724640937012,1.10062911,2742.8,2742.6,1.31]
[1724640937210,9.29473082,2742.7,2742.6,1.31]
[1724640938021,9.29473082,2742.7,2742.5,0.3867]
[1724640939415,9.65920082,2742.7,2742.3,0.00817833]
[1724640939605,0.3597,2742.6,2742.3,0.00817833]
[1724640940617,0.72417,2742.6,2742.3,0.00817833]
[1724640940814,0.36449,2742.5,2742.3,0.00817833]
[1724640941319,0.3699,2742.4,2742.3,0.00817833]
[1724640942711,0.36448,2742.6,2742.3,4.00957833]
[1724640943021,0.36449,2742.5,2742.3,4.00957833]
[1724640943315,0.36449,2742.5,2742.3,0.36317833]
[1724640943513,9.4120562,2742.7,2742.4,3.6464]
[1724640943514,0.36448,2742.6,2742.4,3.6464]
[1724640943718,0.36448,2742.6,2742.3,0.36317833]
[1724640943913,0.36448,2742.6,2742.3,4.00957833]
[1724640944114,0.36447,2742.6,2742.3,4.00957833]
[1724640945414,0.3699,2742.7,2742.3,0.00817833]
[1724640945719,0.36449,2742.5,2742.3,0.00817833]
[1724640949122,0.3699,2742.7,2742.3,0.00817833]
[1724640949325,0.3645,2742.4,2742.3,0.00817833]
[1724640952031,0.36449,2742.5,2742.3,0.00817833]
[1724640959714,0.36448,2742.6,2742.3,0.37268833]
[1724640960127,0.36448,2742.6,2742.5,1.31]
[1724640961325,4.5372213,2742.6,2742.5,1.31]
[1724640961524,4.5372113,2742.6,2742.5,1.31]
[1724640962030,8.68465325,2742.7,2742.5,1.31]
[1724640962223,4.30264845,2742.6,2742.5,1.31]
[1724640965317,4.30441827,2742.6,2742.5,1.31]
[1724640967121,4.30441827,2742.6,2742.5,1.67448]
[1724640967318,4.30441827,2742.6,2742.5,1.31]
[1724640968634,4.30441827,2742.6,2742.5,1.67448]
[1724640968827,3.82600328,2742.7,2742.6,0.36447]
[1724640969031,3.83578239,2742.8,2742.7,0.36446]
[1724640969228,0.00977911,2742.8,2742.7,4.0137]
[1724640969426,0.00977911,2742.8,2742.6,1.31]
[1724640972029,0.00977911,2742.8,2742.7,1.31]
[1724640972430,0.00977911,2742.8,2742.7,1.67446]
[1724640972625,0.00977911,2742.8,2742.7,1.31]
[1724640977633,4.01982911,2742.8,2742.3,3.21597833]
[1724640977835,3.82143879,2742.6,2742.5,1.31]
[1724640978240,4.20663879,2742.6,2742.5,1.31]
[1724640978438,0.3852,2742.6,2742.5,1.31]
[1724640978652,4.20663879,2742.6,2742.5,1.31]
[1724640982036,7.41443879,2742.6,2742.3,0.00817833]
[1724640982242,5.04314818,2742.5,2742.4,1.31]
[1724640984534,0.74409,2742.5,2742.4,1.31]
[1724640986350,3.593,2742.6,2742.4,1.31]
[1724640986649,3.95747,2742.6,2742.5,1.31]
[1724640987336,3.593,2742.6,2742.5,1.31]
[1724640987738,3.95747,2742.6,2742.5,1.31]
[1724640988045,3.593,2742.6,2742.5,1.31]
[1724640988834,0.3852,2742.6,2742.5,1.31]
[1724640990241,0.74967,2742.6,2742.5,1.31]
[1724640991048,0.3852,2742.6,2742.5,1.31]
[1724640992835,0.74967,2742.6,2742.5,1.31]
[1724640993443,4.20524805,2742.6,2742.5,1.31]
[1724640994947,4.56971805,2742.6,2742.5,1.31]
[1724640995748,0.3852,2742.6,2742.5,1.31]
[1724640995953,4.20546152,2742.6,2742.5,1.31]
[1724640996344,3.82026152,2742.6,2742.5,1.31]
[1724640996542,3.82026152,2742.7,2742.5,1.67448]
[1724640996851,3.82026152,2742.7,2742.6,0.36447]
[1724640997037,3.82026152,2742.7,2742.6,0.3523]
[1724640999551,0.37422911,2742.8,2742.6,0.3523]
[1724640999743,0.37422911,2742.8,2742.7,1.31]
[1724640999941,0.00977911,2742.8,2742.7,1.31]
[1724641000548,0.37422911,2742.8,2742.6,0.3523]
[1724641000744,0.37422911,2742.8,2742.6,1.6623]